[Event "Late-Titled-Tuesday-Blitz-September-12-2023"]
[Site "Chess.com"]
[Date "2023.09.12"]
[Round "7"]
[White "pokochajszachy"]
[Black "chess94cu"]
[Result "0-1"]
[WhiteElo "2394"]
[BlackElo "2688"]
[TimeControl "180+1"]
[EndTime "15:13:10 PDT"]
[Termination "chess94cu won by resignation"]

1. d4 {[%clk 0:03:00.9]} 1... Nf6 {[%clk 0:02:58.3]} 2. c4 {[%clk 0:03:00.9]}
2... d6 {[%clk 0:02:58.1]} 3. Nc3 {[%clk 0:02:59.4]} 3... Nbd7 {[%clk
0:02:56.9]} 4. e4 {[%clk 0:02:59]} 4... e5 {[%clk 0:02:56.2]} 5. Nf3 {[%clk
0:02:59.6]} 5... Be7 {[%clk 0:02:53.9]} 6. Be2 {[%clk 0:02:58.3]} 6... c6 {[%clk
0:02:54.1]} 7. O-O {[%clk 0:02:58.3]} 7... O-O {[%clk 0:02:54.8]} 8. h3 {[%clk
0:02:56.9]} 8... Re8 {[%clk 0:02:55.2]} 9. Rb1 {[%clk 0:02:54.7]} 9... a5 {[%clk
0:02:53.8]} 10. b3 {[%clk 0:02:53.1]} 10... Bf8 {[%clk 0:02:53.2]} 11. Bb2
{[%clk 0:02:50]} 11... Qc7 {[%clk 0:02:48.8]} 12. Qc2 {[%clk 0:02:41.7]} 12...
g6 {[%clk 0:02:48.1]} 13. a3 {[%clk 0:02:36.8]} 13... Bg7 {[%clk 0:02:43.7]} 14.
d5 {[%clk 0:02:34.8]} 14... cxd5 {[%clk 0:02:36.4]} 15. cxd5 {[%clk 0:02:28.6]}
15... Nc5 {[%clk 0:02:28.6]} 16. Nd2 {[%clk 0:02:20.8]} 16... Bd7 {[%clk
0:02:22.2]} 17. Rfc1 {[%clk 0:02:20.7]} 17... Rec8 {[%clk 0:02:20.3]} 18. Qd1
{[%clk 0:02:19.9]} 18... Qb6 {[%clk 0:02:11.7]} 19. Nc4 {[%clk 0:01:53.4]} 19...
Qc7 {[%clk 0:02:09.1]} 20. f3 {[%clk 0:01:49.4]} 20... Bh6 {[%clk 0:02:03.5]}
21. Nd2 {[%clk 0:01:35.4]} 21... Bxd2 {[%clk 0:02:01.2]} 22. Qxd2 {[%clk
0:01:36.3]} 22... Nxb3 {[%clk 0:02:01.8]} 23. Qh6 {[%clk 0:01:36.2]} 23... Nxc1
{[%clk 0:02:01.5]} 24. Bxc1 {[%clk 0:01:37.1]} 24... Qxc3 {[%clk 0:01:59.1]} 25.
Bg5 {[%clk 0:01:33.9]} 25... Ne8 {[%clk 0:01:55.2]} 26. Rxb7 {[%clk 0:01:34.2]}
26... Rc7 {[%clk 0:01:54.8]} 27. Rb1 {[%clk 0:01:26.9]} 27... f6 {[%clk
0:01:52.9]} 28. Bd2 {[%clk 0:01:25.9]} 28... Qd4+ {[%clk 0:01:52.5]} 29. Be3
{[%clk 0:01:24.6]} 29... Qa4 {[%clk 0:01:46.6]} 30. h4 {[%clk 0:01:23.3]} 30...
Qc2 {[%clk 0:01:40.5]} 31. Re1 {[%clk 0:01:17.8]} 31... Ng7 {[%clk 0:01:38]} 32.
g4 {[%clk 0:01:12.1]} 32... Rc3 {[%clk 0:01:29.9]} 33. h5 {[%clk 0:01:01.3]}
33... Be8 {[%clk 0:01:26.8]} 34. Kf2 {[%clk 0:00:44.8]} 34... Rb8 {[%clk
0:01:04.7]} 35. hxg6 {[%clk 0:00:44.5]} 35... Bxg6 {[%clk 0:01:05.6]} 36. Rc1
{[%clk 0:00:38.5]} 36... Qb2 {[%clk 0:01:04.9]} 37. Rxc3 {[%clk 0:00:13]} 37...
Qxc3 {[%clk 0:01:05.8]} 38. g5 {[%clk 0:00:13.9]} 38... f5 {[%clk 0:01:00.5]}
39. exf5 {[%clk 0:00:12]} 39... Nxf5 {[%clk 0:01:01.4]} 0-1

[Event "Late-Titled-Tuesday-Blitz-September-12-2023"]
[Site "Chess.com"]
[Date "2023.09.12"]
[Round "7"]
[White "MagnusCarlsen"]
[Black "Bigfish1995"]
[Result "1-0"]
[WhiteElo "3224"]
[BlackElo "3064"]
[TimeControl "180+1"]
[EndTime "15:13:12 PDT"]
[Termination "MagnusCarlsen won by resignation"]

1. e4 {[%clk 0:03:00.9]} 1... h6 {[%clk 0:02:57.8]} 2. d4 {[%clk 0:02:58.8]}
2... c6 {[%clk 0:02:56.3]} 3. Nf3 {[%clk 0:02:51.9]} 3... d5 {[%clk 0:02:56]} 4.
exd5 {[%clk 0:02:51.6]} 4... cxd5 {[%clk 0:02:55.4]} 5. Bd3 {[%clk 0:02:52.1]}
5... Nc6 {[%clk 0:02:51.5]} 6. c3 {[%clk 0:02:52.1]} 6... Qc7 {[%clk 0:02:45.5]}
7. h3 {[%clk 0:02:47.4]} 7... e6 {[%clk 0:02:43.5]} 8. O-O {[%clk 0:02:47.1]}
8... Bd6 {[%clk 0:02:43.9]} 9. c4 {[%clk 0:02:42.1]} 9... dxc4 {[%clk
0:02:39.8]} 10. Bxc4 {[%clk 0:02:41.6]} 10... Nf6 {[%clk 0:02:39.6]} 11. Nc3
{[%clk 0:02:41.6]} 11... a6 {[%clk 0:02:40.1]} 12. Be3 {[%clk 0:02:36.9]} 12...
O-O {[%clk 0:02:37]} 13. Rc1 {[%clk 0:02:37.5]} 13... Qd8 {[%clk 0:02:29.3]} 14.
d5 {[%clk 0:02:34.8]} 14... Na5 {[%clk 0:02:21.7]} 15. Bb3 {[%clk 0:02:09.9]}
15... Nxb3 {[%clk 0:02:10.1]} 16. Qxb3 {[%clk 0:02:10.8]} 16... Nxd5 {[%clk
0:01:43.7]} 17. Nxd5 {[%clk 0:02:10.6]} 17... exd5 {[%clk 0:01:44.3]} 18. Rfd1
{[%clk 0:02:11.4]} 18... Be6 {[%clk 0:01:35.4]} 19. Qxb7 {[%clk 0:02:10.9]}
19... a5 {[%clk 0:01:16.1]} 20. b3 {[%clk 0:02:10.8]} 20... a4 {[%clk
0:01:15.5]} 21. Nd4 {[%clk 0:02:10.1]} 21... axb3 {[%clk 0:01:14.1]} 22. axb3
{[%clk 0:02:09.9]} 22... Qf6 {[%clk 0:01:13.2]} 23. Qc6 {[%clk 0:02:01.5]} 23...
Be5 {[%clk 0:01:07.8]} 24. Qb5 {[%clk 0:01:45.7]} 24... Rfb8 {[%clk 0:00:53.4]}
25. Qd3 {[%clk 0:01:45]} 25... Ra3 {[%clk 0:00:53]} 26. Rc3 {[%clk 0:01:41.5]}
26... Bd7 {[%clk 0:00:49.1]} 27. Rc5 {[%clk 0:01:16.5]} 27... Be6 {[%clk
0:00:23.5]} 28. Rdc1 {[%clk 0:01:12.4]} 28... Bd6 {[%clk 0:00:22]} 29. Rb5
{[%clk 0:01:02.7]} 29... Re8 {[%clk 0:00:20.8]} 30. Rb6 {[%clk 0:00:59.5]} 30...
Qe5 {[%clk 0:00:19.4]} 31. Nf3 {[%clk 0:00:52.6]} 31... Qe4 {[%clk 0:00:19.6]}
32. Qb5 {[%clk 0:00:53]} 32... Bxh3 {[%clk 0:00:13.3]} 33. Rxd6 {[%clk
0:00:52.7]} 33... Raa8 {[%clk 0:00:04.9]} 34. Qxd5 {[%clk 0:00:49.2]} 34... Qg4
{[%clk 0:00:04.9]} 35. Nh2 {[%clk 0:00:48.7]} 35... Qe2 {[%clk 0:00:04.8]} 36.
gxh3 {[%clk 0:00:47.4]} 36... Rxe3 {[%clk 0:00:05.3]} 37. Qxa8+ {[%clk
0:00:47.4]} 37... Re8 {[%clk 0:00:04.5]} 38. Rd8 {[%clk 0:00:45.6]} 1-0

[Event "Late-Titled-Tuesday-Blitz-September-12-2023"]
[Site "Chess.com"]
[Date "2023.09.12"]
[Round "7"]
[White "RaphaeI"]
[Black "Atanejhad"]
[Result "1-0"]
[WhiteElo "2616"]
[BlackElo "2444"]
[TimeControl "180+1"]
[EndTime "15:13:12 PDT"]
[Termination "RaphaeI won by checkmate"]

1. d4 {[%clk 0:03:00.9]} 1... Nf6 {[%clk 0:02:58.9]} 2. Bf4 {[%clk 0:03:00.9]}
2... d6 {[%clk 0:02:56.8]} 3. Nc3 {[%clk 0:02:59.5]} 3... g6 {[%clk 0:02:56.1]}
4. e4 {[%clk 0:02:58.8]} 4... Bg7 {[%clk 0:02:56.5]} 5. Qd2 {[%clk 0:02:59.1]}
5... O-O {[%clk 0:02:56.5]} 6. O-O-O {[%clk 0:02:59.7]} 6... c5 {[%clk
0:02:43.9]} 7. dxc5 {[%clk 0:02:55.6]} 7... Qa5 {[%clk 0:02:44.3]} 8. cxd6
{[%clk 0:02:49.8]} 8... Nxe4 {[%clk 0:01:55.2]} 9. Nxe4 {[%clk 0:02:48.4]} 9...
Qxa2 {[%clk 0:01:54.8]} 10. Qb4 {[%clk 0:02:30]} 10... Nc6 {[%clk 0:01:49.8]}
11. Qa3 {[%clk 0:02:28.5]} 11... Qe6 {[%clk 0:01:36]} 12. Bd3 {[%clk 0:02:06.9]}
12... exd6 {[%clk 0:01:32]} 13. Nf3 {[%clk 0:02:06.4]} 13... d5 {[%clk
0:01:24.3]} 14. Nd6 {[%clk 0:01:54.2]} 14... Qg4 {[%clk 0:01:22]} 15. Bg3 {[%clk
0:01:46.4]} 15... Rd8 {[%clk 0:01:21.9]} 16. h3 {[%clk 0:01:28]} 16... Qh5
{[%clk 0:01:19.4]} 17. Qa4 {[%clk 0:01:14.3]} 17... d4 {[%clk 0:01:10.5]} 18.
Nxc8 {[%clk 0:01:09.6]} 18... Raxc8 {[%clk 0:01:09.4]} 19. Kb1 {[%clk
0:01:04.9]} 19... Rd5 {[%clk 0:01:06.1]} 20. Rhe1 {[%clk 0:00:59]} 20... Ra5
{[%clk 0:01:05.2]} 21. Qb3 {[%clk 0:00:59.2]} 21... Qc5 {[%clk 0:00:55.3]} 22.
Bc4 {[%clk 0:00:16.2]} 22... Kh8 {[%clk 0:00:52.4]} 23. Bxf7 {[%clk 0:00:15.1]}
23... Rb5 {[%clk 0:00:53]} 24. Qe6 {[%clk 0:00:11.8]} 24... Rf8 {[%clk
0:00:48.1]} 25. Bd6 {[%clk 0:00:04.6]} 25... Qb6 {[%clk 0:00:47.5]} 26. Bxf8
{[%clk 0:00:02.6]} 26... Rxb2+ {[%clk 0:00:40.7]} 27. Kc1 {[%clk 0:00:02.8]}
27... Bxf8 {[%clk 0:00:35.9]} 28. Qf6+ {[%clk 0:00:02.6]} 28... Bg7 {[%clk
0:00:30]} 29. Re8# {[%clk 0:00:03.5]} 1-0

[Event "Late-Titled-Tuesday-Blitz-September-12-2023"]
[Site "Chess.com"]
[Date "2023.09.12"]
[Round "7"]
[White "miraitrunks"]
[Black "Al_Shima"]
[Result "0-1"]
[WhiteElo "2126"]
[BlackElo "2347"]
[TimeControl "180+1"]
[EndTime "15:13:15 PDT"]
[Termination "Al_Shima won by resignation"]

1. e4 {[%clk 0:02:59.2]} 1... d5 {[%clk 0:02:59.7]} 2. Nc3 {[%clk 0:02:58.4]}
2... Nf6 {[%clk 0:02:58.8]} 3. e5 {[%clk 0:02:57.7]} 3... d4 {[%clk 0:02:59.1]}
4. exf6 {[%clk 0:02:55.1]} 4... dxc3 {[%clk 0:02:59.5]} 5. bxc3 {[%clk
0:02:53.7]} 5... gxf6 {[%clk 0:02:59]} 6. Nf3 {[%clk 0:02:53.2]} 6... b6 {[%clk
0:02:57]} 7. d4 {[%clk 0:02:52.8]} 7... Bb7 {[%clk 0:02:57.1]} 8. Bd3 {[%clk
0:02:52.8]} 8... Rg8 {[%clk 0:02:56.4]} 9. Kf1 {[%clk 0:02:25.3]} 9... h5 {[%clk
0:02:51.6]} 10. Qe2 {[%clk 0:02:24.8]} 10... Qd7 {[%clk 0:02:42.3]} 11. h3
{[%clk 0:02:20]} 11... Nc6 {[%clk 0:02:30.8]} 12. Ba3 {[%clk 0:02:14]} 12...
O-O-O {[%clk 0:02:27.5]} 13. Ba6 {[%clk 0:01:59.7]} 13... Bh6 {[%clk 0:02:13.1]}
14. Rd1 {[%clk 0:01:41.8]} 14... e6 {[%clk 0:02:09.2]} 15. Nd2 {[%clk
0:01:32.9]} 15... Bxd2 {[%clk 0:02:05.5]} 16. Rxd2 {[%clk 0:01:11.8]} 16... Qd5
{[%clk 0:02:03.6]} 17. Bxb7+ {[%clk 0:00:55.8]} 17... Kxb7 {[%clk 0:02:03.1]}
18. Qf3 {[%clk 0:00:55.5]} 18... Qxf3 {[%clk 0:01:57.5]} 19. gxf3 {[%clk
0:00:55]} 19... Na5 {[%clk 0:01:57.6]} 20. Be7 {[%clk 0:00:54.3]} 20... Nc4
{[%clk 0:01:53.1]} 21. Re2 {[%clk 0:00:49.9]} 21... Rd5 {[%clk 0:01:51.9]} 22.
Bxf6 {[%clk 0:00:49.5]} 22... Rf5 {[%clk 0:01:51.8]} 23. Be7 {[%clk 0:00:32.8]}
23... Rxf3 {[%clk 0:01:51.1]} 24. h4 {[%clk 0:00:33.3]} 24... Rxc3 {[%clk
0:01:50.7]} 25. Rg1 {[%clk 0:00:29]} 25... Rxg1+ {[%clk 0:01:41.2]} 26. Kxg1
{[%clk 0:00:29.9]} 26... Rf3 {[%clk 0:01:38.5]} 27. Kg2 {[%clk 0:00:23.5]} 27...
Rf4 {[%clk 0:01:38.4]} 28. c3 {[%clk 0:00:22.3]} 28... Kc6 {[%clk 0:01:34.4]}
29. Kg3 {[%clk 0:00:20.6]} 29... Rg4+ {[%clk 0:01:34.2]} 30. Kf3 {[%clk
0:00:20.5]} 30... Kd5 {[%clk 0:01:32.9]} 31. Bg5 {[%clk 0:00:19.3]} 31... b5
{[%clk 0:01:27.3]} 32. Re1 {[%clk 0:00:19.2]} 32... a5 {[%clk 0:01:24.5]} 33.
Rb1 {[%clk 0:00:19.2]} 33... c6 {[%clk 0:01:18.3]} 34. Rd1 {[%clk 0:00:15.9]}
34... b4 {[%clk 0:01:16.5]} 35. cxb4 {[%clk 0:00:15.7]} 35... axb4 {[%clk
0:01:17.4]} 36. Rd3 {[%clk 0:00:13.1]} 36... Rxd4 {[%clk 0:01:14.6]} 37. Rb3
{[%clk 0:00:12.3]} 37... Rg4 {[%clk 0:01:10.5]} 38. Ke2 {[%clk 0:00:06.6]} 38...
c5 {[%clk 0:01:08.4]} 39. Rd3+ {[%clk 0:00:04.1]} 39... Rd4 {[%clk 0:01:08.1]}
40. Rf3 {[%clk 0:00:03.7]} 40... Ne5 {[%clk 0:01:06.6]} 41. Re3 {[%clk
0:00:02.4]} 41... Re4 {[%clk 0:01:05.8]} 42. f4 {[%clk 0:00:02.3]} 42... Rxe3+
{[%clk 0:01:05.1]} 43. Kxe3 {[%clk 0:00:02.7]} 43... Ng4+ {[%clk 0:01:03.4]} 44.
Kd3 {[%clk 0:00:03.6]} 44... f6 {[%clk 0:01:03.3]} 45. Kc2 {[%clk 0:00:01.9]}
0-1

[Event "Late-Titled-Tuesday-Blitz-September-12-2023"]
[Site "Chess.com"]
[Date "2023.09.12"]
[Round "7"]
[White "ameetghasi100"]
[Black "Chessdude1987"]
[Result "1-0"]
[WhiteElo "2697"]
[BlackElo "2445"]
[TimeControl "180+1"]
[EndTime "15:13:24 PDT"]
[Termination "ameetghasi100 won by resignation"]

1. Nf3 {[%clk 0:03:00.9]} 1... e6 {[%clk 0:02:58.9]} 2. g3 {[%clk 0:02:59.7]}
2... d5 {[%clk 0:02:58.2]} 3. Bg2 {[%clk 0:03:00.6]} 3... Nf6 {[%clk 0:02:58.3]}
4. O-O {[%clk 0:03:01.5]} 4... Nbd7 {[%clk 0:02:56.7]} 5. b3 {[%clk 0:03:02.4]}
5... Bd6 {[%clk 0:02:52.7]} 6. Bb2 {[%clk 0:03:02.2]} 6... e5 {[%clk 0:02:52.6]}
7. d3 {[%clk 0:03:00.8]} 7... O-O {[%clk 0:02:50.3]} 8. Nc3 {[%clk 0:03:00.8]}
8... c6 {[%clk 0:02:50.2]} 9. e4 {[%clk 0:03:00.4]} 9... Re8 {[%clk 0:02:49.8]}
10. Re1 {[%clk 0:02:53.9]} 10... a6 {[%clk 0:02:37.7]} 11. Nd2 {[%clk
0:02:53.5]} 11... Nb6 {[%clk 0:02:28.3]} 12. a4 {[%clk 0:02:50]} 12... a5 {[%clk
0:02:28.3]} 13. exd5 {[%clk 0:02:49.9]} 13... cxd5 {[%clk 0:02:28.3]} 14. Nb5
{[%clk 0:02:50.1]} 14... Bb8 {[%clk 0:02:27.6]} 15. c4 {[%clk 0:02:42.1]} 15...
Bf5 {[%clk 0:02:17.5]} 16. Nf3 {[%clk 0:01:48.2]} 16... e4 {[%clk 0:02:10.3]}
17. Nh4 {[%clk 0:01:32]} 17... Bg6 {[%clk 0:02:06]} 18. Nxg6 {[%clk 0:01:21.7]}
18... hxg6 {[%clk 0:02:05.7]} 19. dxe4 {[%clk 0:01:21.3]} 19... dxe4 {[%clk
0:01:49]} 20. Qxd8 {[%clk 0:01:15.7]} 20... Rxd8 {[%clk 0:01:49]} 21. Rad1
{[%clk 0:01:16]} 21... Nbd7 {[%clk 0:01:41.1]} 22. Bxe4 {[%clk 0:00:43.1]} 22...
Be5 {[%clk 0:01:18]} 23. Bxe5 {[%clk 0:00:30.2]} 23... Nxe4 {[%clk 0:01:09.8]}
24. Rxe4 {[%clk 0:00:28.6]} 24... Nxe5 {[%clk 0:01:09.4]} 25. Rxd8+ {[%clk
0:00:28.9]} 25... Rxd8 {[%clk 0:01:08.9]} 26. Rxe5 {[%clk 0:00:29.8]} 26... Rd1+
{[%clk 0:01:08.3]} 27. Kg2 {[%clk 0:00:29.9]} 27... Rb1 {[%clk 0:01:08.4]} 28.
Re8+ {[%clk 0:00:29.3]} 28... Kh7 {[%clk 0:01:08.3]} 29. Re3 {[%clk 0:00:30.2]}
29... g5 {[%clk 0:01:07.8]} 30. Nd6 {[%clk 0:00:30.1]} 30... Kg6 {[%clk
0:01:07.3]} 31. Nxb7 {[%clk 0:00:30.4]} 31... f5 {[%clk 0:01:07.1]} 32. Nxa5
{[%clk 0:00:30.6]} 32... f4 {[%clk 0:01:07.2]} 33. Rd3 {[%clk 0:00:29.7]} 33...
Kf5 {[%clk 0:01:06]} 34. Rd5+ {[%clk 0:00:25.3]} 34... Ke4 {[%clk 0:01:03.5]}
35. f3+ {[%clk 0:00:23.9]} 35... Ke3 {[%clk 0:01:00.6]} 36. Re5+ {[%clk
0:00:24.2]} 36... Kd3 {[%clk 0:00:59.7]} 37. gxf4 {[%clk 0:00:20.6]} 37... gxf4
{[%clk 0:00:56.1]} 38. Re4 {[%clk 0:00:19.9]} 38... Rb2+ {[%clk 0:00:51.8]} 39.
Kh3 {[%clk 0:00:20.3]} 39... g5 {[%clk 0:00:51.7]} 40. Nc6 {[%clk 0:00:20.2]}
40... Rxb3 {[%clk 0:00:49.6]} 41. Ne5+ {[%clk 0:00:18.6]} 41... Kd2 {[%clk
0:00:48.9]} 42. c5 {[%clk 0:00:18.4]} 42... Rc3 {[%clk 0:00:48.2]} 43. c6 {[%clk
0:00:18.8]} 43... Kc2 {[%clk 0:00:45.6]} 44. Kg4 {[%clk 0:00:19]} 44... Kb3
{[%clk 0:00:45.8]} 45. Kxg5 {[%clk 0:00:19.5]} 45... Rc5 {[%clk 0:00:43.2]} 46.
Kxf4 {[%clk 0:00:19.6]} 1-0

[Event "Late-Titled-Tuesday-Blitz-September-12-2023"]
[Site "Chess.com"]
[Date "2023.09.12"]
[Round "7"]
[White "NotFischer"]
[Black "KorolDimitriy75"]
[Result "1-0"]
[WhiteElo "2305"]
[BlackElo "2362"]
[TimeControl "180+1"]
[EndTime "15:13:26 PDT"]
[Termination "NotFischer won on time"]

1. e4 {[%clk 0:03:00.9]} 1... c5 {[%clk 0:02:59.8]} 2. Nf3 {[%clk 0:03:00.7]}
2... d6 {[%clk 0:03:00]} 3. d4 {[%clk 0:03:00.5]} 3... cxd4 {[%clk 0:03:00.9]}
4. Nxd4 {[%clk 0:03:00.9]} 4... Nf6 {[%clk 0:03:01.4]} 5. Nc3 {[%clk 0:03:00.9]}
5... g6 {[%clk 0:03:02.1]} 6. Bg5 {[%clk 0:02:58.1]} 6... Bg7 {[%clk 0:03:02.1]}
7. Bb5+ {[%clk 0:02:56.2]} 7... Bd7 {[%clk 0:03:01.6]} 8. a4 {[%clk 0:02:51]}
8... O-O {[%clk 0:02:51.9]} 9. Qd2 {[%clk 0:02:50.4]} 9... Nc6 {[%clk
0:02:28.2]} 10. Nde2 {[%clk 0:02:39]} 10... Qa5 {[%clk 0:02:03]} 11. O-O {[%clk
0:02:32.2]} 11... Rfe8 {[%clk 0:01:43.1]} 12. Rad1 {[%clk 0:02:03.3]} 12... a6
{[%clk 0:01:32.3]} 13. Bc4 {[%clk 0:02:01.4]} 13... Rac8 {[%clk 0:01:21.7]} 14.
Bb3 {[%clk 0:01:51.9]} 14... Ne5 {[%clk 0:00:48.5]} 15. h3 {[%clk 0:01:42.8]}
15... Nc4 {[%clk 0:00:46.2]} 16. Bxc4 {[%clk 0:01:42.4]} 16... Rxc4 {[%clk
0:00:47.1]} 17. b3 {[%clk 0:01:26.8]} 17... Rcc8 {[%clk 0:00:34]} 18. f4 {[%clk
0:01:11.8]} 18... Qc5+ {[%clk 0:00:18]} 19. Kh2 {[%clk 0:01:10.4]} 19... b5
{[%clk 0:00:18.2]} 20. axb5 {[%clk 0:01:09.2]} 20... axb5 {[%clk 0:00:19.1]} 21.
e5 {[%clk 0:01:05.9]} 21... b4 {[%clk 0:00:10.1]} 22. Na4 {[%clk 0:00:30]} 22...
Bxa4 {[%clk 0:00:08.9]} 23. Bxf6 {[%clk 0:00:26.5]} 23... exf6 {[%clk
0:00:08.2]} 24. bxa4 {[%clk 0:00:24.9]} 24... dxe5 {[%clk 0:00:07.6]} 25. Ng3
{[%clk 0:00:13.9]} 25... Qxc2 {[%clk 0:00:06.2]} 26. Qxb4 {[%clk 0:00:12.9]}
26... exf4 {[%clk 0:00:05.2]} 27. Qxf4 {[%clk 0:00:12.5]} 27... Rc4 {[%clk
0:00:02]} 28. Rd4 {[%clk 0:00:12]} 1-0

[Event "Late-Titled-Tuesday-Blitz-September-12-2023"]
[Site "Chess.com"]
[Date "2023.09.12"]
[Round "7"]
[White "laskakid"]
[Black "Gogolev_Artemy"]
[Result "1-0"]
[WhiteElo "2259"]
[BlackElo "2398"]
[TimeControl "180+1"]
[EndTime "15:13:28 PDT"]
[Termination "laskakid won on time"]

1. d4 {[%clk 0:03:00.9]} 1... d5 {[%clk 0:02:53.5]} 2. c4 {[%clk 0:03:00.6]}
2... c6 {[%clk 0:02:53.6]} 3. cxd5 {[%clk 0:02:59.3]} 3... cxd5 {[%clk
0:02:54.5]} 4. Bf4 {[%clk 0:02:59.4]} 4... Nf6 {[%clk 0:02:53.4]} 5. e3 {[%clk
0:02:59.2]} 5... Nc6 {[%clk 0:02:50]} 6. Nc3 {[%clk 0:02:59.4]} 6... a6 {[%clk
0:02:45.6]} 7. Be2 {[%clk 0:02:57.9]} 7... Bf5 {[%clk 0:02:40.9]} 8. Nf3 {[%clk
0:02:56.9]} 8... e6 {[%clk 0:02:40.7]} 9. Qb3 {[%clk 0:02:57.1]} 9... Bd6 {[%clk
0:02:35.4]} 10. Bxd6 {[%clk 0:02:38.4]} 10... Qxd6 {[%clk 0:02:35.2]} 11. O-O
{[%clk 0:02:21.7]} 11... O-O {[%clk 0:02:34.8]} 12. Na4 {[%clk 0:02:12.8]} 12...
Na5 {[%clk 0:02:16.4]} 13. Qc3 {[%clk 0:02:01.1]} 13... Qd8 {[%clk 0:02:11.6]}
14. Nc5 {[%clk 0:01:47.4]} 14... Ne4 {[%clk 0:02:00.8]} 15. Nxe4 {[%clk
0:01:40.7]} 15... Bxe4 {[%clk 0:02:01.7]} 16. Rfc1 {[%clk 0:01:32.5]} 16... Rc8
{[%clk 0:01:51.9]} 17. Qb4 {[%clk 0:01:30.3]} 17... Bxf3 {[%clk 0:01:35.8]} 18.
Bxf3 {[%clk 0:01:20.8]} 18... Nc4 {[%clk 0:00:43.9]} 19. Qxb7 {[%clk 0:01:11.7]}
19... Rb8 {[%clk 0:00:42.2]} 20. Qxa6 {[%clk 0:01:11.8]} 20... Rxb2 {[%clk
0:00:42]} 21. Rab1 {[%clk 0:00:54.1]} 21... Qb8 {[%clk 0:00:34.2]} 22. Rxb2
{[%clk 0:00:46.1]} 22... Qxb2 {[%clk 0:00:35.1]} 23. Rd1 {[%clk 0:00:41.9]}
23... g6 {[%clk 0:00:12.7]} 24. a4 {[%clk 0:00:41.3]} 24... Nd2 {[%clk
0:00:09.6]} 25. Be2 {[%clk 0:00:34]} 25... Ne4 {[%clk 0:00:09.8]} 26. f3 {[%clk
0:00:27]} 26... Nc3 {[%clk 0:00:08.6]} 27. Re1 {[%clk 0:00:27.2]} 27... Qd2
{[%clk 0:00:04.7]} 28. Kf2 {[%clk 0:00:25.7]} 28... Rb8 {[%clk 0:00:05.3]} 29.
Qd3 {[%clk 0:00:23]} 29... Qb2 {[%clk 0:00:02.8]} 30. a5 {[%clk 0:00:21.4]}
30... Ra8 {[%clk 0:00:01.9]} 31. a6 {[%clk 0:00:21.3]} 1-0

[Event "Late-Titled-Tuesday-Blitz-September-12-2023"]
[Site "Chess.com"]
[Date "2023.09.12"]
[Round "7"]
[White "Giantgoogachess"]
[Black "IMSlavin"]
[Result "1-0"]
[WhiteElo "2386"]
[BlackElo "2224"]
[TimeControl "180+1"]
[EndTime "15:13:36 PDT"]
[Termination "Giantgoogachess won by resignation"]

1. d4 {[%clk 0:02:35.8]} 1... Nc6 {[%clk 0:03:00.7]} 2. Nf3 {[%clk 0:02:34.7]}
2... d6 {[%clk 0:03:00.5]} 3. e4 {[%clk 0:02:34.4]} 3... Bg4 {[%clk 0:02:59.9]}
4. Be3 {[%clk 0:02:33.6]} 4... Nf6 {[%clk 0:02:59.8]} 5. Nc3 {[%clk 0:02:33.5]}
5... e5 {[%clk 0:02:59.7]} 6. dxe5 {[%clk 0:02:31.5]} 6... dxe5 {[%clk
0:02:59.2]} 7. Qxd8+ {[%clk 0:02:30.9]} 7... Rxd8 {[%clk 0:02:58.1]} 8. Bb5
{[%clk 0:02:31.8]} 8... Bd6 {[%clk 0:02:51.9]} 9. Bxc6+ {[%clk 0:02:30.6]} 9...
bxc6 {[%clk 0:02:51.3]} 10. Nd2 {[%clk 0:02:30.7]} 10... a6 {[%clk 0:02:47.6]}
11. f3 {[%clk 0:02:30.9]} 11... Be6 {[%clk 0:02:46.8]} 12. Ke2 {[%clk
0:02:30.1]} 12... Ke7 {[%clk 0:02:43.1]} 13. a3 {[%clk 0:02:29.2]} 13... Nd7
{[%clk 0:02:33.8]} 14. Rhd1 {[%clk 0:02:27.1]} 14... Rb8 {[%clk 0:02:32.6]} 15.
b3 {[%clk 0:02:26.7]} 15... a5 {[%clk 0:02:28.2]} 16. Na4 {[%clk 0:02:26.3]}
16... g6 {[%clk 0:02:17.8]} 17. c4 {[%clk 0:02:24.4]} 17... c5 {[%clk
0:02:15.2]} 18. Rab1 {[%clk 0:02:22.3]} 18... f5 {[%clk 0:02:14.3]} 19. Bf2
{[%clk 0:02:13.4]} 19... f4 {[%clk 0:02:12]} 20. Nc3 {[%clk 0:02:05.3]} 20... c6
{[%clk 0:02:04.6]} 21. Na4 {[%clk 0:02:03.8]} 21... g5 {[%clk 0:02:01.2]} 22. g4
{[%clk 0:02:00.2]} 22... h5 {[%clk 0:01:56.4]} 23. h3 {[%clk 0:01:59.2]} 23...
hxg4 {[%clk 0:01:56.1]} 24. hxg4 {[%clk 0:01:59.3]} 24... Rh2 {[%clk 0:01:55.8]}
25. Rh1 {[%clk 0:01:58.7]} 25... Rbh8 {[%clk 0:01:52.3]} 26. Rxh2 {[%clk
0:01:57.6]} 26... Rxh2 {[%clk 0:01:52.5]} 27. Rd1 {[%clk 0:01:38.9]} 27... Rh8
{[%clk 0:01:19.9]} 28. Nb1 {[%clk 0:01:37.1]} 28... Rb8 {[%clk 0:01:11.5]} 29.
Nd2 {[%clk 0:01:36.5]} 29... Rh8 {[%clk 0:01:02.8]} 30. Kf1 {[%clk 0:01:31.8]}
30... Rh1+ {[%clk 0:00:57.2]} 31. Bg1 {[%clk 0:01:31.3]} 31... Rh3 {[%clk
0:00:54.4]} 32. Kg2 {[%clk 0:01:29.5]} 32... Rh8 {[%clk 0:00:53.5]} 33. Bf2
{[%clk 0:01:29.2]} 33... Rh7 {[%clk 0:00:50.4]} 34. Rh1 {[%clk 0:01:28]} 34...
Rxh1 {[%clk 0:00:50.5]} 35. Kxh1 {[%clk 0:01:28.9]} 35... Bf7 {[%clk 0:00:49.9]}
36. Nb1 {[%clk 0:01:26.7]} 36... Kd8 {[%clk 0:00:48]} 37. Nbc3 {[%clk
0:01:25.9]} 37... Kc7 {[%clk 0:00:47.4]} 38. Ne2 {[%clk 0:01:26.6]} 38... Bg6
{[%clk 0:00:43.5]} 39. Nc1 {[%clk 0:01:26.5]} 39... Bf7 {[%clk 0:00:43.5]} 40.
Nd3 {[%clk 0:01:25.7]} 40... Be6 {[%clk 0:00:40.8]} 41. Kg2 {[%clk 0:01:24.5]}
41... Bf7 {[%clk 0:00:40.2]} 42. Kf1 {[%clk 0:01:24.2]} 42... Bg8 {[%clk
0:00:39.9]} 43. Ke2 {[%clk 0:01:24.4]} 43... Be6 {[%clk 0:00:39.9]} 44. Ndxc5
{[%clk 0:01:14.2]} 44... Bxc5 {[%clk 0:00:34.5]} 45. Bxc5 {[%clk 0:01:15.1]}
45... Kd8 {[%clk 0:00:30.1]} 46. Bb6+ {[%clk 0:01:12.3]} 46... Nxb6 {[%clk
0:00:25.4]} 47. Nxb6 {[%clk 0:01:13.2]} 47... Kc7 {[%clk 0:00:25.3]} 48. Na4
{[%clk 0:01:11.5]} 48... Kd6 {[%clk 0:00:25.8]} 49. Nb2 {[%clk 0:01:09.4]} 49...
Kc5 {[%clk 0:00:23.7]} 50. Kd3 {[%clk 0:01:09.7]} 50... Bf7 {[%clk 0:00:21.6]}
51. Kc3 {[%clk 0:01:09.3]} 51... Be6 {[%clk 0:00:20.3]} 52. Nd3+ {[%clk
0:01:07.3]} 52... Kd6 {[%clk 0:00:20.5]} 53. c5+ {[%clk 0:01:07]} 53... Ke7
{[%clk 0:00:20]} 54. Nxe5 {[%clk 0:01:07.7]} 54... Kf6 {[%clk 0:00:17.5]} 55.
Nxc6 {[%clk 0:01:05.8]} 55... Bd7 {[%clk 0:00:17.4]} 56. Nd4 {[%clk 0:01:04.2]}
1-0